[Event "Israeli Team-ch 2023"]
[Site "Petah Tikva"]
[Date "2023.01.13"]
[Round "2.19"]
[White "Gelfand, Boris"]
[Black "Boruchovsky, Avital"]
[Result "1/2-1/2"]
[ECO "E11"]
[WhiteElo "2667"]
[BlackElo "2553"]
[Annotator "TA"]
[PlyCount "54"]
[EventDate "2023.01.13"]
[EventCountry "ISR"]
[SourceTitle "playchess.com"]
[Source "ChessBase"]
[SourceQuality "1"]
[TimeControl "40/5400+30:1800+30"]

{[%evp 20,54,29,38,25,31,21,22,61,34,36,33,32,42,37,35,34,30,42,34,35,38,48,28,54,58,64,47,45,0,66,40,75,0,69,0,71]} 1. d4 {[%emt 0:03:59]} e6 {[%emt 0:00:36]} 2. c4 {[%emt 0:00:05]} Nf6 {[%emt 0:03:29]} 3. Nf3 {[%emt 0:00:09]} Bb4+ {[%emt 0:00:08]} 4. Nbd2 {[%emt 0:00:15]} O-O {[%emt 0:00:44]} 5. a3 {[%emt 0:01:05]} Bxd2+ {[%emt 0:00:08]} 6. Bxd2 {[%emt 0:02:00]} b6 {[%emt 0:03:22]} 7. Bg5 {[%emt 0:01:30][%cal Bd2g5,Bg5h4,Bh4g3][%mdl 32]} Bb7 {[%emt 0:02:43]} 8. e3 {[%emt 0:01:03]} d6 {[%emt 0:02:01]} 9. Bd3 {[%emt 0:01:45]} h6 {[%emt 0:01:57]} 10. Bh4 {[%emt 0:02:19]} Nbd7 {[%emt 0:00:41]} 11. O-O {[%emt 0:01:07]} g5 {[%emt 0:04:01] E11: Bogo-Indian.} 12. Bg3 {[%emt 0:00:51]} Ne4 {[%emt 0:00:06]} 13. Nd2 {[%emt 0:22:58] [#]} Ndf6 $146 {[%emt 0:07:30]} ({Predecessor:} 13... Nxg3 14. fxg3 f5 15. g4 f4 16. Be4 Bxe4 17. Nxe4 Nf6 18. Qf3 Nxe4 19. Qxe4 Qf6 20. exf4 gxf4 {½-½ Fischer,W (2460)-Mokrys,C (2473) EU-ch 2016 ct05 email}) 14. Qc2 {[%emt 0:08:43][%cal Rd2e4]} Nxd2 {[%emt 0:01:29]} 15. Qxd2 {[%emt 0:00:37]} Ne4 {[%emt 0:00:27]} 16. Bxe4 {[%emt 0:00:23]} Bxe4 {[%emt 0:00:09]} 17. f3 {[%emt 0:04:46]} Bg6 {[%emt 0:01:46]} 18. b4 {[%emt 0:00:54][%cal Bb2b4,Bb4c5][%mdl 32]} a5 {[%emt 0:20:15]} 19. c5 {[%emt 0:08:01]} bxc5 {[%emt 0:18:13]} 20. bxc5 {[%emt 0:01:34]} d5 {[%emt 0:00:36]} 21. Rae1 {[%emt 0:11:48] Black is weak on the dark squares} Qe7 {[%emt 0:06:31]} 22. e4 {[%emt 0:01:16] aiming for exd5.} Rfd8 {[%emt 0:00:04]} 23. Qe3 {[%emt 0:06:53]} Rab8 {[%emt 0:01:32]} 24. Rb1 {[%emt 0:00:13] Strongly threatening Rxb8.} Qd7 {[%emt 0:05:49]} (24... dxe4 $11 25. fxe4 a4) 25. Be5 {[%emt 0:02:41][%cal Oc5c6]} Qe7 {[%emt 0:00:05]} 26. Bg3 {[%emt 0:05:27] White has more active pieces.} Qd7 {[%emt 0:00:18]} 27. Be5 {[%emt 0:04:09]} Qe7 {[%emt 0:00:09] Weighted Error Value: White=0.22 (precise) /Black=0.15 (very precise)} 1/2-1/2

[Event "Israeli Team-ch 2023"]
[Site "Petah Tikva"]
[Date "2023.01.13"]
[Round "2.20"]
[White "Gorshtein, Ido"]
[Black "Najer, Evgeniy"]
[Result "0-1"]
[ECO "A21"]
[WhiteElo "2498"]
[BlackElo "2662"]
[Annotator "TA"]
[PlyCount "84"]
[EventDate "2023.01.13"]
[EventCountry "ISR"]
[SourceTitle "playchess.com"]
[Source "ChessBase"]
[SourceQuality "1"]
[TimeControl "40/5400+30:1800+30"]

{[%evp 9,84,19,40,30,27,37,33,27,36,22,36,24,20,20,18,16,16,18,12,10,22,16,12,12,20,14,14,1,5,2,2,7,5,5,7,0,0,0,0,0,0,0,0,0,0,0,0,-8,-15,-35,-35,-36,-43,-36,-41,-77,-97,-184,-182,-188,-189,-335,-335,-334,-320,-1501,-1234,-1343,-1383,-919,-781,-2069,-1950,-1364,-1327,-911,-845]} 1. c4 {[%emt 0:00:03]} e5 {[%emt 0:00:21]} 2. g3 {[%emt 0:00:06]} d6 {[%emt 0:00:30]} 3. Nc3 {[%emt 0:00:12]} f5 {[%emt 0:00:23]} 4. d4 {[%emt 0:00:09]} Be7 {[%emt 0:00:05]} 5. Bh3 {[%emt 0:00:07]} Na6 {[%emt 0:02:39]} 6. dxe5 {[%emt 0:06:34] A21: English Opening: 1...e5 2 Nc3.} dxe5 {[%emt 0:01:01]} 7. Qxd8+ {[%emt 0:00:07]} Bxd8 {[%emt 0:00:04]} 8. Nf3 {[%emt 0:09:59] White is slightly better.} Bf6 {[%emt 0:01:19]} 9. e4 {[%emt 0:07:09]} Ne7 {[%emt 0:02:36]} 10. O-O {[%emt 0:02:14] [#]} O-O $146 {[%emt 0:03:31]} ({Predecessor:} 10... Nc5 11. Bg2 Be6 12. b3 Rd8 13. Be3 Nxe4 14. Nxe4 fxe4 15. Ng5 Bxg5 16. Bxg5 h6 {½-½ Bailey,M (2246)-Cruz Carmona,G (2086) WLS/SRCCC/21/D3 2021 [3]}) 11. b3 {[%emt 0:09:47]} Nc5 {[%emt 0:39:44]} 12. Ba3 {[%emt 0:05:24]} Nxe4 {[%emt 0:04:59]} 13. Nxe4 {[%emt 0:01:20]} fxe4 {[%emt 0:00:06]} 14. Bxc8 {[%emt 0:00:05]} Rfxc8 {[%emt 0:14:20]} 15. Nd2 {[%emt 0:01:07]} Nc6 {[%emt 0:00:05]} 16. Nxe4 {[%emt 0:00:23]} Rd8 {[%emt 0:00:04]} 17. Bb2 {[%emt 0:04:12]} a5 {[%emt 0:04:52]} 18. Rfd1 {[%emt 0:15:11]} a4 {[%emt 0:03:39]} 19. Bc3 {[%emt 0:00:42]} axb3 {[%emt 0:06:59]} 20. axb3 {[%emt 0:01:26]} Rxa1 {[%emt 0:00:16]} 21. Rxa1 {[%emt 0:00:08]} Be7 {[%emt 0:00:32] Dodges b4} 22. Kf1 {[%emt 0:02:24]} Kf7 {[%emt 0:02:05]} 23. Ke2 {[%emt 0:00:44]} Ke6 {[%emt 0:00:04]} 24. h4 {[%emt 0:01:39]} Kf5 {[%emt 0:02:59]} 25. f3 {[%emt 0:00:38]} h5 {[%emt 0:00:12]} 26. c5 {[%emt 0:07:28]} Ke6 {[%emt 0:05:02]} 27. b4 {[%emt 0:07:12]} Nd4+ {[%emt 0:00:12]} 28. Kf2 {[%emt 0:01:16]} Kd5 {[%emt 0:00:48]} 29. Bxd4 {[%emt 0:02:20]} exd4 $11 {[%emt 0:00:46][%mdl 4096] Endgame KRB-KRN} 30. Ke2 {[%emt 0:00:58]} Kc4 {[%emt 0:02:49]} 31. Rc1+ {[%emt 0:00:47]} Kxb4 {[%emt 0:00:22]} 32. Kd3 {[%emt 0:00:06]} Kb5 {[%emt 0:00:11]} 33. Rc4 {[%emt 0:04:31]} (33. g4 $17) 33... Kc6 {[%emt 0:01:03]} ({Inferior is} 33... Rf8 34. f4 $17) 34. Rxd4 {[%emt 0:01:44] [#]} Rd5 {[%emt 0:01:01]} ({And not} 34... Rf8 35. Ke3 $17) 35. g4 {[%emt 0:03:27]} (35. Kc3 {is a better defense.}) 35... hxg4 $19 {[%emt 0:01:04]} (35... Bxc5 $2 {loses.} 36. Rxd5 Kxd5 37. Nc3+ Ke5 38. Ne2 $19) 36. fxg4 {[%emt 0:00:09]} Bxh4 {[%emt 0:00:03] Hoping for ...Bf6.} 37. Rxd5 $2 {[%emt 0:04:13]} (37. g5) 37... Kxd5 {[%emt 0:00:05] KB-KN. Black is clearly winning.} 38. g5 {[%emt 0:00:08]} g6 {[%emt 0:01:40]} 39. Ke3 {[%emt 0:00:26]} Ke5 {[%emt 0:00:35] [#] aiming for ...Kf5.} 40. Kf3 {[%emt 0:01:14]} Kf5 {[%emt 0:00:23]} 41. Nc3 {[%emt 0:31:01]} Bxg5 {[%emt 0:30:44]} 42. Nb5 {[%emt 0:00:22]} Bd8 {[%emt 0:00:00] Weighted Error Value: White=0.48/Black=0.01 (flawless)} 0-1

[Event "Israeli Team-ch 2023"]
[Site "Petah Tikva"]
[Date "2023.01.13"]
[Round "2.21"]
[White "Zanan, Evgeny"]
[Black "Rozen, Eytan"]
[Result "1-0"]
[ECO "B12"]
[WhiteElo "2483"]
[BlackElo "2440"]
[Annotator "TA"]
[PlyCount "137"]
[EventDate "2023.01.13"]
[EventCountry "ISR"]
[SourceTitle "playchess.com"]
[Source "ChessBase"]
[SourceQuality "1"]
[TimeControl "40/5400+30:1800+30"]

{[%evp 15,137,27,31,26,33,33,30,23,52,54,68,64,66,66,62,62,60,60,60,60,61,61,61,61,68,66,63,61,85,48,48,48,48,48,48,58,52,51,43,43,43,43,43,43,43,43,43,43,43,43,50,43,122,50,43,43,50,51,44,44,100,100,116,122,113,109,195,129,386,373,568,559,468,475,458,391,297,154,1078,1231,1051,937,1322,1369,12829,12829,12830,12830,12831,12831,12830,12830,12834,12834,12834,12835,12839,12839,12839,12839,12840,12840,12839,12839,12843,12843,12850,27999,27999,27999,27999,27999,27999,27999,27999,27999,27999,27999,27999,27999,27999,27999,27999,27999]} 1. e4 {[%emt 0:01:55]} c6 {[%emt 0:01:03]} 2. d4 {[%emt 0:00:26]} d5 {[%emt 0:00:06]} 3. e5 {[%emt 0:00:06]} Bf5 {[%emt 0:00:06]} 4. Nf3 {[%emt 0:00:04]} e6 {[%emt 0:00:04]} 5. Be2 {[%emt 0:00:11]} c5 {[%emt 0:00:16]} 6. Be3 {[%emt 0:00:58]} cxd4 {[%emt 0:01:48]} 7. Nxd4 {[%emt 0:01:51]} Ne7 {[%emt 0:00:03]} 8. O-O $1 {[%emt 0:03:25][%mdl 4] is currently scoring better than 8.Nd2.} Nbc6 {[%emt 0:00:11]} 9. Bb5 {[%emt 0:04:48] B12: Caro-Kann: Advance Variation.} a6 {[%emt 0:00:14]} 10. Bxc6+ {[%emt 0:00:09]} bxc6 {[%emt 0:00:02] [#] Black is weak on the dark squares} 11. c4 $1 {[%emt 0:00:32] White has an edge.} dxc4 {[%emt 0:02:11]} (11... Qd7 {simplifies} 12. Nc3 dxc4 13. Nxf5 Qxd1 14. Nxd1 Nxf5 15. Rc1 Be7) 12. Qa4 {[%emt 0:12:03][%csl LRc4,LRc6]} Bd3 {[%emt 0:01:49]} 13. Rd1 {[%emt 0:03:03][%mdl 1024] White has compensation.} Qd7 {[%emt 0:02:05]} 14. Na3 $1 {[%emt 0:08:01][%cal Bb1a3,Ba3c4,Bc4a5,Ba5b3,Bb3c5][%mdl 32]} c5 {[%emt 0:04:57] [#]} 15. Ndb5 $1 {[%emt 0:04:33]} Nd5 {[%emt 0:04:15] [#]} (15... axb5 $2 16. Qxa8+ Qd8 17. Qb7 $18) 16. Nc7+ $1 {[%emt 0:03:33][%mdl 64] Decoy} Nxc7 {[%emt 0:00:03]} 17. Qxd7+ {[%emt 0:00:06]} Kxd7 {[%emt 0:00:02]} 18. Nxc4 {[%emt 0:00:07] Threatens to win with Nb6+.} Nd5 {[%emt 0:00:22] Against Nb6+} 19. Rxd3 {[%emt 0:00:04] [#] And now Nb6+ would win.} Rb8 $146 {[%emt 0:08:38] Wards off Nb6+} ({Predecessor:} 19... Kc7 20. Rc1 Be7 21. Bd2 Rab8 22. Ra3 Kb7 23. Kf1 Ka7 24. Ke2 h6 25. Rc2 Rhd8 {½-½ Sethuraman,S (2624)-Donchenko,A (2511) Gibraltar Masters 13th 2015 (5)}) 20. Ra3 {[%emt 0:14:16] White is more active.} Ra8 {[%emt 0:03:19]} 21. Rb3 {[%emt 0:08:41] Hoping for Rb7+.} Kc7 {[%emt 0:09:41] Dodges Rb7+} 22. Na5 {[%emt 0:04:32] Strongly threatening Rb7+.} Rb8 {[%emt 0:01:50] Inhibits Rb7+.} 23. Rxb8 {[%emt 0:01:40]} Kxb8 {[%emt 0:00:01]} 24. Rc1 {[%emt 0:00:11]} Ka7 {[%emt 0:20:11]} 25. Nb3 {[%emt 0:21:42]} Nxe3 {[%emt 0:01:13]} 26. fxe3 $14 {[%emt 0:00:31][%cal Oc1f1][%mdl 4096] Endgame KRB-KRN} Be7 {[%emt 0:01:58]} 27. Nxc5 {[%emt 0:00:42]} Rc8 {[%emt 0:11:10]} 28. Nd3 {[%emt 0:00:17]} Rxc1+ {[%emt 0:00:07]} 29. Nxc1 {[%emt 0:00:03] KB-KN} Kb6 {[%emt 0:00:08]} 30. Nd3 {[%emt 0:01:07]} Kc6 {[%emt 0:00:13]} 31. e4 {[%emt 0:00:34]} Kb5 {[%emt 0:01:54]} 32. b3 {[%emt 0:00:04]} Bc5+ {[%emt 0:00:07]} 33. Kf1 {[%emt 0:00:52]} Bd4 {[%emt 0:00:02]} (33... a5 $1 $14) 34. Ke2 {[%emt 0:01:02]} (34. a4+ $1 $16 Kc6 35. b4) 34... a5 {[%emt 0:01:05]} 35. a4+ {[%emt 0:01:06]} Kb6 {[%emt 0:00:58]} 36. Kd2 {[%emt 0:00:12]} Kc6 {[%emt 0:01:17]} 37. Kc2 {[%emt 0:00:10]} Bg1 {[%emt 0:05:05]} ({Better is} 37... Kb7 $14) 38. h3 $1 $16 {[%emt 0:00:10]} Bd4 {[%emt 0:00:06]} 39. b4 $1 {[%emt 0:01:26]} axb4 {[%emt 0:00:37]} 40. Kb3 {[%emt 0:00:04]} ({Of course not} 40. Nxb4+ $6 Kc5 41. Kb3 Ba1 $11) 40... h5 {[%emt 0:01:25]} (40... Bg1 $16) 41. Kxb4 $18 {[%emt 0:33:42]} Kb6 $2 {[%emt 0:38:48][%mdl 8192]} (41... g5 $16 42. g4 hxg4 43. hxg4 Bg1) 42. a5+ $1 {[%emt 0:00:00]} Ka6 {[%emt 0:00:00]} (42... Kc6 {was necessary.} 43. Kc4 Ba1) 43. Ka4 $1 {[%emt 0:00:00]} Bc3 {[%emt 0:00:00]} 44. Nb4+ {[%emt 0:00:00]} Kb7 {[%emt 0:00:00]} 45. Kb5 $1 {[%emt 0:00:00]} Bxe5 {[%emt 0:00:00] [#]} 46. a6+ {[%emt 0:00:00]} ({White has to play} 46. Nc6 $1 $18 {[%cal Rc6e5]} Bf6 47. a6+ Kc7 48. a7) 46... Kc7 $2 {[%emt 0:00:00] Black cannot hold the game after this.} (46... Ka8 $16 47. Nc6 Bb2) 47. Nc6 {[%emt 0:00:00]} Bf6 {[%emt 0:00:00]} 48. Kc5 {[%emt 0:00:00]} Bg5 {[%emt 0:00:00] [#]} 49. a7 $1 {[%emt 0:00:00]} Be3+ {[%emt 0:00:00]} 50. Kc4 {[%emt 0:00:00]} Kb7 {[%emt 0:00:00]} 51. Nd8+ {[%emt 0:00:00]} Kxa7 {[%emt 0:00:00]} 52. Nxf7 {[%emt 0:00:00]} Kb6 {[%emt 0:00:00]} 53. Nd8 {[%emt 0:00:00]} g6 {[%emt 0:00:00]} 54. Nxe6 {[%emt 0:00:00]} Kc6 {[%emt 0:00:00]} 55. e5 {[%emt 0:01:41]} Kd7 {[%emt 0:00:00]} 56. Nf8+ {[%emt 0:02:36]} Ke7 {[%emt 0:00:00]} 57. Nxg6+ {[%emt 0:00:08]} Kf7 {[%emt 0:00:00]} 58. Nh4 {[%emt 0:00:08]} Ke6 {[%emt 0:00:00]} 59. Nf3 {[%emt 0:00:04]} Bb6 {[%emt 0:00:00]} 60. g4 {[%emt 0:04:56]} hxg4 {[%emt 0:00:00]} 61. hxg4 {[%emt 0:00:01][%cal Bh3g4,Bg4g5,Bg5g6][%mdl 32]} Ba7 {[%emt 0:00:00] White mates.} 62. g5 {[%emt 0:02:06]} Be3 {[%emt 0:00:00]} 63. g6 {[%emt 0:00:01]} Bh6 {[%emt 0:00:00]} 64. Kd4 {[%emt 0:00:03]} Kf5 {[%emt 0:00:00]} 65. Nh4+ {[%emt 0:00:30]} Kg5 {[%emt 0:00:00]} 66. Kd5 {[%emt 0:01:06]} Bg7 {[%emt 0:00:00]} 67. e6 {[%emt 0:00:27]} Kf6 {[%emt 0:00:00]} 68. Nf5 {[%emt 0:00:28][%mdl 64] Deflection, Promotion} Bf8 {[%emt 0:00:00]} 69. g7 {[%emt 0:00:08] Artfully played by Zanan.   Weighted Error Value: White=0.06 (flawless) /Black=0.23 (precise)} 1-0

[Event "Israeli Team-ch 2023"]
[Site "Petah Tikva"]
[Date "2023.01.13"]
[Round "2.22"]
[White "Erenberg, Ariel"]
[Black "Bronstein, Or"]
[Result "1/2-1/2"]
[ECO "A29"]
[WhiteElo "2504"]
[BlackElo "2447"]
[Annotator "TA"]
[PlyCount "58"]
[EventDate "2023.01.13"]
[EventCountry "ISR"]
[SourceTitle "playchess.com"]
[Source "ChessBase"]
[SourceQuality "1"]
[TimeControl "40/5400+30:1800+30"]

{[%evp 15,58,0,17,0,0,-1,0,0,0,-6,0,0,6,0,0,-24,-16,-39,-20,-22,-32,-31,-35,-49,-17,-9,0,-6,0,0,0,0,2,0,13,28,22,31,28,39,46,33,31,0,0]} 1. c4 {[%emt 0:00:48]} Nf6 {[%emt 0:01:50]} 2. Nc3 {[%emt 0:01:45]} e5 {[%emt 0:01:00]} 3. Nf3 {[%emt 0:04:02]} Nc6 {[%emt 0:00:26]} 4. g3 {[%emt 0:02:03]} d5 {[%emt 0:00:30]} 5. cxd5 {[%emt 0:00:18]} Nxd5 {[%emt 0:00:03]} 6. Bg2 {[%emt 0:00:09]} Bc5 {[%emt 0:01:27]} 7. O-O {[%emt 0:04:54]} O-O {[%emt 0:00:59]} 8. d3 {[%emt 0:08:59]} h6 {[%emt 0:01:29]} 9. Bd2 {[%emt 0:18:40][%cal Of3e5] A29: English Opening: Four Knights Variation with 4 g3.} Nf6 {[%emt 0:01:44]} 10. a3 {[%emt 0:06:48]} a5 {[%emt 0:02:14]} 11. Rc1 {[%emt 0:05:58]} Re8 {[%emt 0:00:29] [#]} 12. Ne1 $146 {[%emt 0:16:38]} ({Predecessor:} 12. Na4 Bd6 13. Nc5 Bxc5 14. Rxc5 e4 15. dxe4 Nxe4 16. Rc2 Bf5 17. Qc1 Nd6 18. Rc5 Rxe2 {1-0 Vachier Lagrave,M (2750)-So,W (2776) Bucharest Superbet Classic 2nd playoff rapid 2022 (2)}) 12... Nd4 {[%emt 0:24:13]} 13. e3 {[%emt 0:01:50]} Nf5 {[%emt 0:08:33][%cal Bd4f5,Bf5d6,Bd6b5][%mdl 32]} (13... Bg4 $2 14. f3 Nf5 15. Qe2 $18 (15. fxg4 Nxe3 16. Bxe3 Bxe3+ 17. Kh1 Bxc1 $16)) 14. Ne4 {[%emt 0:04:10]} Bb6 {[%emt 0:00:12]} 15. Nc5 {[%emt 0:00:36]} c6 {[%emt 0:03:53]} 16. b4 {[%emt 0:03:55]} Nd6 {[%emt 0:06:17]} 17. Qb3 {[%emt 0:00:48]} axb4 {[%emt 0:00:38]} 18. axb4 {[%emt 0:00:07]} Nb5 {[%emt 0:03:26][%cal Oe5e4]} 19. Qb2 {[%emt 0:00:40]} Nd7 {[%emt 0:11:21]} 20. Ne4 {[%emt 0:00:08]} Bc7 {[%emt 0:02:43]} 21. Nc3 {[%emt 0:04:54]} Nxc3 {[%emt 0:00:11]} 22. Bxc3 {[%emt 0:05:03]} Nb6 {[%emt 0:00:35]} 23. b5 {[%emt 0:00:19]} Na4 {[%emt 0:05:45]} 24. Qb1 {[%emt 0:00:12]} Nxc3 {[%emt 0:03:31]} 25. Rxc3 {[%emt 0:00:02]} cxb5 {[%emt 0:01:05]} 26. Qxb5 {[%emt 0:00:21][%cal Oc3c7] [#] Hoping for Rxc7!} Ra5 {[%emt 0:01:03]} 27. Qb1 {[%emt 0:02:27]} Ra7 {[%emt 0:06:21]} 28. Rb3 {[%emt 0:02:45]} (28. Nf3 $5 {[%cal Rf1c1]}) 28... Ba5 {[%emt 0:02:56]} 29. Bxb7 {[%emt 0:04:14]} Bxb7 {[%emt 0:00:16] Weighted Error Value: White=0.07 (flawless) /Black=0.05 (flawless)} 1/2-1/2

[Event "Israeli Team-ch 2023"]
[Site "Petah Tikva"]
[Date "2023.01.13"]
[Round "2.23"]
[White "Kaspi, Alexander"]
[Black "Raznikov, Danny"]
[Result "1/2-1/2"]
[ECO "E37"]
[WhiteElo "2412"]
[BlackElo "2482"]
[Annotator "TA"]
[PlyCount "41"]
[EventDate "2023.01.13"]
[EventCountry "ISR"]
[SourceTitle "playchess.com"]
[Source "ChessBase"]
[SourceQuality "1"]
[TimeControl "40/5400+30:1800+30"]

{[%evp 17,28,27,25,20,30,34,31,21,24,33,38,28,23]} 1. d4 {[%emt 0:01:47]} Nf6 {[%emt 0:00:46]} 2. c4 {[%emt 0:00:53]} e6 {[%emt 0:00:24]} 3. Nc3 {[%emt 0:00:55]} Bb4 {[%emt 0:00:14]} 4. Qc2 {[%emt 0:01:08]} d5 {[%emt 0:01:01]} 5. a3 {[%emt 0:03:59]} Bxc3+ {[%emt 0:00:54]} 6. Qxc3 {[%emt 0:00:30]} Ne4 {[%emt 0:03:12]} 7. Qc2 {[%emt 0:01:09]} c5 {[%emt 0:00:46]} 8. dxc5 {[%emt 0:04:37]} Nc6 {[%emt 0:00:58]} 9. Nf3 $1 {[%emt 0:00:20][%mdl 4] is currently scoring better than 9.cxd5.} Qa5+ {[%emt 0:03:57]} 10. Bd2 {[%emt 0:01:23] E37: Nimzo-Indian: Classical: 4...d5 5 a3 Bxc3+ 6 Qxc3 Ne4.} Qxc5 {[%emt 0:08:44]} 11. e3 {[%emt 0:02:05]} Nxd2 {[%emt 0:01:33]} 12. Nxd2 {[%emt 0:01:01]} dxc4 {[%emt 0:08:04]} 13. Bxc4 {[%emt 0:03:58]} Bd7 {[%emt 0:06:16]} 14. Rc1 {[%emt 0:16:15][%cal Oc4e6]} (14. b4 $5 {[%cal Rb4c5]} Qb6 15. O-O $14) 14... O-O {[%emt 0:05:20] [#] Black did not feel at home in the position after the opening.   Weighted Error Value: White=0.02 (flawless) /Black=0.04 (flawless)} {Predecessor:} 15. Nb3 $146 Qe7 16. Bd3 h6 17. O-O Rac8 18. Qe2 Nb8 19. Bb1 e5 20. Qd3 g6 21. Na5 {½-½ Lahiri,A (2353)-Chiaretti,R (2209) Pardubice Czech op-A 21st 2010 (5)} 1/2-1/2

[Event "Israeli Team-ch 2023"]
[Site "Petah Tikva"]
[Date "2023.01.13"]
[Round "2.24"]
[White "Mindlin, Alon"]
[Black "Oratovsky, Michael"]
[Result "1/2-1/2"]
[ECO "C41"]
[WhiteElo "2432"]
[BlackElo "2422"]
[Annotator "TA"]
[PlyCount "40"]
[EventDate "2023.01.13"]
[EventCountry "ISR"]
[SourceTitle "playchess.com"]
[Source "ChessBase"]
[SourceQuality "1"]
[TimeControl "40/5400+30:1800+30"]

{[%evp 15,40,25,21,17,44,36,44,0,0,0,0,6,17,4,3,10,28,6,19,12,36,33,22,35,16,10,16]} 1. d4 {[%emt 0:00:02]} d6 {[%emt 0:02:26]} 2. e4 {[%emt 0:02:01]} Nf6 {[%emt 0:00:08]} 3. Nc3 {[%emt 0:00:51]} e5 {[%emt 0:03:41]} 4. Nf3 {[%emt 0:02:50]} Nbd7 {[%emt 0:00:23]} 5. g3 {[%emt 0:01:16]} c6 {[%emt 0:13:27]} 6. Bg2 {[%emt 0:05:16]} Be7 {[%emt 0:08:55]} 7. O-O {[%emt 0:02:15]} O-O {[%emt 0:00:17]} 8. a4 {[%emt 0:00:54]} Re8 {[%emt 0:02:02]} 9. Re1 {[%emt 0:04:09] C41: Philidor Defence.} Bf8 {[%emt 0:05:11]} 10. a5 {[%emt 0:02:19]} Rb8 {[%emt 0:00:42]} 11. h3 {[%emt 0:04:47] [#] White is slightly better.} b5 $146 {[%emt 0:01:33]} ({Predecessor:} 11... Qc7 12. g4 g6 13. Bg5 h5 14. gxh5 Nxh5 15. Qd2 Bg7 16. dxe5 dxe5 17. Be3 Ra8 {0-1 Hernando Casas,J (2029)-Argandona Riveiro,I (2375) Mondragon Arrasate Hiria op 9th 2009 (2)}) 12. axb6 {[%emt 0:00:40]} axb6 {[%emt 0:00:05]} 13. d5 {[%emt 0:12:38]} cxd5 {[%emt 0:13:36]} 14. Nxd5 {[%emt 0:05:22]} Nxd5 {[%emt 0:02:07]} 15. exd5 {[%emt 0:00:04]} Bb7 {[%emt 0:03:44]} 16. Ra7 {[%emt 0:07:51]} Qc7 {[%emt 0:14:12]} 17. Re3 {[%emt 0:17:09]} Ra8 {[%emt 0:04:38]} 18. Rc3 {[%emt 0:00:40]} Qb8 {[%emt 0:00:09]} 19. Rxa8 {[%emt 0:00:52]} Bxa8 {[%emt 0:01:15] Black is weak on the light squares} 20. Nh4 {[%emt 0:07:07]} g6 {[%emt 0:21:59] Inhibits Nf5.   Weighted Error Value: White=0.08 (flawless) /Black=0.11 (very precise)} 1/2-1/2